fUST/lending_fUST_20260422
["ID","MTS","AMOUNT","RATE_DAILY","PERIOD"]
[420950841,1776787229786,617.24,0.00025331,120]
[420950843,1776787344619,500.0,0.00025331,120]
[420950844,1776787528382,339.48,0.00025331,120]
[420950845,1776787591107,200.0,0.00024389,120]
[420950850,1776787641343,-5000.0,5.362e-05,10]
[420950851,1776787641367,-5000.0,5.416e-05,10]
[420950852,1776787644630,500.0,0.00025331,120]
[420950853,1776787653053,-1941.01977456,5.442e-05,10]
[420950854,1776787653076,-300.0,5.497e-05,2]
[420950855,1776787653100,-500.0,5.498e-05,2]
[420950856,1776787653127,-207.09300723,5.499e-05,2]
[420950857,1776787653151,-300.0,5.525e-05,2]
[420950858,1776787653175,-171.76405,5.929e-05,2]
[420950859,1776787653201,-300.0,6.046e-05,2]
[420950860,1776787653226,-300.0,6.046e-05,2]
[420950861,1776787653252,-300.0,6.046e-05,2]
[420950862,1776787653277,-300.0,6.046e-05,2]
[420950863,1776787653302,-300.0,6.046e-05,2]
[420950864,1776787653328,-300.0,6.046e-05,2]
[420950865,1776787653354,-300.0,6.046e-05,2]
[420950866,1776787653380,-300.0,6.046e-05,2]
[420950867,1776787653405,-300.0,6.046e-05,2]
[420950868,1776787653430,-300.0,6.046e-05,2]
[420950869,1776787653456,-300.0,6.046e-05,2]
[420950870,1776787653483,-300.0,6.046e-05,2]
[420950871,1776787653509,-300.0,6.046e-05,2]
[420950872,1776787653533,-300.0,6.046e-05,2]
[420950873,1776787653557,-300.0,6.046e-05,2]
[420950874,1776787710915,200.0,0.00019486,120]
[420950875,1776787726862,-5000.0,7.424e-05,2]
[420950876,1776787726885,-525.0,7.424e-05,2]
[420950877,1776787726909,-244.36974853,7.499e-05,2]
[420950878,1776787726937,-300.0,7.571e-05,2]
[420950879,1776787726962,-300.0,7.571e-05,2]
[420950880,1776787726989,-300.0,7.571e-05,2]
[420950881,1776787727015,-300.0,7.571e-05,2]
[420950882,1776787727040,-300.0,7.571e-05,2]
[420950883,1776787727066,-300.0,7.571e-05,2]
[420950884,1776787727092,-300.0,7.571e-05,2]
[420950885,1776787727117,-300.0,7.571e-05,2]
[420950886,1776787727141,-300.0,7.571e-05,2]
[420950887,1776787727165,-300.0,7.571e-05,2]
[420950888,1776787727190,-300.0,7.571e-05,2]
[420950889,1776787727216,-300.0,7.571e-05,2]
[420950890,1776787727242,-300.0,7.571e-05,2]
[420950891,1776787727266,-300.0,7.571e-05,2]
[420950892,1776787727291,-30.63025147,7.571e-05,2]
[420950893,1776787738442,-2165.49860194,7.6e-05,2]
[420951000,1776787832382,-5000.0,7.826e-05,2]
[420951003,1776787832393,-530.0,7.826e-05,2]
[420951004,1776787832403,-198.06375212,7.866e-05,2]
[420951006,1776787832413,-171.76405,7.905e-05,2]
[420951008,1776787832423,-300.0,7.982e-05,2]
[420951010,1776787832433,-300.0,7.982e-05,2]
[420951012,1776787832443,-300.0,7.982e-05,2]
[420951014,1776787832454,-300.0,7.982e-05,2]
[420951016,1776787832465,-300.0,7.982e-05,2]
[420951018,1776787832475,-300.0,7.982e-05,2]
[420951020,1776787832486,-300.0,7.982e-05,2]
[420951022,1776787832496,-300.0,7.982e-05,2]
[420951024,1776787832507,-300.0,7.982e-05,2]
[420951026,1776787832518,-300.0,7.982e-05,2]
[420951028,1776787832528,-300.0,7.982e-05,2]
[420951030,1776787832537,-300.0,7.982e-05,2]
[420951032,1776787832547,-300.0,7.982e-05,2]
[420951033,1776787832556,-300.0,7.982e-05,2]
[420951035,1776787832566,-300.0,7.982e-05,2]
[420951037,1776787832575,-835.51069104,8.5e-05,7]
[420951039,1776787832585,-233.7152275,9.866e-05,2]
[420951041,1776787832594,-171.76405,9.881e-05,2]
[420951043,1776787832604,-19.18222934,0.00011858,2]
[420951546,1776787838678,-1805.26752108,7.902e-05,2]
[420951547,1776787838733,-3194.73247892,7.902e-05,2]
[420951548,1776787838743,-152.58182066,0.00011858,2]
[420951549,1776787838753,-269.36670288,0.00011866,2]
[420951550,1776787838763,-224.77239047,0.00011956,2]
[420951551,1776787838772,-1439.25,0.00012408,2]
[420951552,1776787838781,-2209.0,0.00012408,2]
[420951553,1776787838791,-645.0,0.00012408,2]
[420951554,1776787838800,-184.0,0.00012408,2]
[420951555,1776787838810,-441.0,0.00012408,2]
[420951556,1776787838819,-7747.08834906,0.00012473,2]
[420951557,1776787838828,-500.0,0.00012555,2]
[420951558,1776787838838,-500.0,0.00012555,2]
[420951559,1776787838847,-470.80593513,0.00012555,2]
[420951560,1776787838856,-500.0,0.00012555,2]
[420951561,1776787838865,-500.0,0.00012555,2]
[420951562,1776787838875,-500.0,0.00012555,2]
[420951563,1776787838884,-500.0,0.00012555,2]
[420951564,1776787838893,-500.0,0.00012555,2]
[420951565,1776787838902,-500.0,0.00012555,2]
[420951566,1776787838911,-500.0,0.00012555,2]
[420951567,1776787838920,-500.0,0.00012555,2]
[420951568,1776787838929,-500.0,0.00012555,2]
[420951569,1776787838939,-603.04920275,0.00012555,2]
[420951570,1776787838948,-500.0,0.00012555,2]
[420951571,1776787838957,-500.0,0.00012555,2]
[420951572,1776787838966,-500.0,0.00012555,2]
[420951573,1776787838975,-311.49973737,0.00012555,2]
[420951574,1776787838984,-500.0,0.00012555,2]
[420951575,1776787838994,-500.0,0.00012555,2]
[420951576,1776787839003,-500.0,0.00012555,2]
[420951577,1776787839012,-500.0,0.00012555,2]
[420951578,1776787839023,-500.0,0.00012555,2]
[420951579,1776787839032,-225.62194027,0.00012555,2]
[420951580,1776787839041,-500.0,0.00012555,2]
[420951581,1776787839051,-500.0,0.00012555,2]
[420951582,1776787839059,-500.0,0.00012555,2]
[420951583,1776787839069,-450.0,0.00012555,2]
[420951584,1776787839078,-500.0,0.00012555,2]
[420951585,1776787839087,-500.0,0.00012555,2]
[420951586,1776787839097,-500.0,0.00012555,2]
[420951587,1776787839106,-170088.87862009,0.00012556,2]
[420951588,1776787839118,-1477.8415112,0.00012556,2]
[420951611,1776787840776,-6423.94677741,0.00012556,2]
[420951612,1776787840832,-6085.88211101,0.00012556,2]
[420951613,1776787840843,-703.674,0.00012556,2]
[420951614,1776787840855,-671.77936835,0.00012556,2]
[420951660,1776787843405,-1563.83098617,0.00012556,2]
[420951661,1776787843417,-3805.93678142,0.00012556,2]
[420951683,1776787847080,-1499.01359077,0.00012556,2]
[420951684,1776787847136,-129265.17575957,0.00012556,2]
[420951688,1776787890766,200.0,0.00019473,120]
[420951690,1776787928782,240.32,0.00025329,120]
[420951691,1776787945736,500.0,0.00025329,120]
[420951692,1776788069768,228.75,0.00025329,120]
[420951693,1776788131263,200.0,0.0002452,120]
[420951694,1776788245751,500.0,0.00025304,120]
[420951695,1776788250825,200.0,0.00023591,120]
[420951696,1776788311343,200.0,0.00022945,120]
[420951773,1776788371005,200.0,0.00023737,120]
[420951786,1776788431207,200.0,0.00024128,120]
[420951787,1776788490721,200.0,0.00023104,120]
[420951789,1776788544845,500.0,0.00025304,120]
[420951790,1776788545100,256.0,0.00022563,120]
[420951791,1776788550831,200.0,0.00023901,120]
[420951792,1776788610757,200.0,0.00023366,120]
[420951810,1776788844677,500.0,0.00025307,120]
[420951873,1776789032787,-500.69002409,0.00011128,10]
[420952031,1776789038926,-4499.30997591,0.00011128,10]
[420952032,1776789038936,-4410.79514364,0.0001124,10]
[420952033,1776789038946,-300.0,0.00011526,2]
[420952034,1776789038955,-202.58732067,0.00011527,2]
[420952035,1776789038965,-582.0,0.00011527,2]
[420952036,1776789038975,-184.0,0.00012442,2]
[420952037,1776789038985,-441.0,0.00012442,2]
[420952038,1776789038995,-1775.8367103,0.00012509,2]
[420952039,1776789039005,-230.2790798,0.00012509,2]
[420952040,1776789039015,-153.4972195,0.00012509,2]
[420952041,1776789039027,-600.0,0.00012655,2]
[420952042,1776789039038,-300.0,0.00012659,2]
[420952043,1776789039049,-300.0,0.00012678,2]
[420952044,1776789039059,-300.0,0.00012678,2]
[420952045,1776789039072,-300.0,0.00012678,2]
[420952047,1776789039083,-89.95999391,0.00012678,2]
[420952049,1776789039098,-210.04000609,0.00012678,2]
[420952051,1776789039108,-300.0,0.00012678,2]
[420952053,1776789039118,-300.0,0.00012678,2]
[420952054,1776789039128,-300.0,0.00012678,2]
[420952055,1776789039139,-300.0,0.00012678,2]
[420952056,1776789039149,-300.0,0.00012678,2]
[420952057,1776789039159,-300.0,0.00012678,2]
[420952058,1776789039169,-300.0,0.00012678,2]
[420952059,1776789039180,-300.0,0.00012678,2]
[420952060,1776789039189,-239.76599421,0.00012678,2]
[420952061,1776789039201,-60.23400579,0.00012678,2]
[420952062,1776789039210,-300.0,0.00012678,2]
[420952063,1776789039219,-143.64741111,0.00013048,2]
[420952065,1776789041529,-16.35258889,0.00013048,2]
[420952066,1776789041539,-123.9988827,0.00013221,2]
[420952100,1776789145920,500.0,0.00025307,120]
[420952105,1776789445533,500.0,0.00025306,120]
[420952106,1776789448447,500.0,0.00025306,120]
[420952107,1776789673704,151.24389753,0.00025318,120]
[420952109,1776789725305,150.778,0.00025318,120]
[420952111,1776789745374,500.0,0.00025318,120]
[420952125,1776790044725,500.0,0.00025318,120]
[420952129,1776790232612,-423.92082829,9.947e-05,10]
[420952130,1776790232665,-480.9919578,9.947e-05,10]
[420952131,1776790232678,-4095.08721391,9.947e-05,10]
[420952132,1776790232688,-2688.30017837,0.00010047,10]
[420952152,1776790239458,-1477.3,0.00010047,10]
[420952162,1776790241081,-380.428899,9.947e-05,10]
[420952163,1776790241091,-88.64981049,0.00010047,10]
[420952171,1776790243868,-745.75001114,0.00010047,10]
[420952172,1776790243878,-300.0,0.000103,2]
[420952173,1776790243887,-564.0,0.000103,2]
[420952174,1776790243896,-209.46472823,0.00010303,2]
[420952175,1776790243906,-1246.15465348,0.00011,2]
[420952176,1776790243915,-247.16837931,0.00012303,2]
[420952177,1776790243924,-172.7093099,0.00012517,2]
[420952178,1776790243934,-88.63495485,0.00012669,2]
[420952250,1776790247084,-211.36504515,0.00012669,2]
[420952252,1776790247094,-300.0,0.00012669,2]
[420952254,1776790247103,-1200.0,0.00012669,2]
[420952256,1776790247112,-2210.0,0.0001267,2]
[420952258,1776790247121,-441.0,0.0001267,2]
[420952260,1776790247130,-184.0,0.0001267,2]
[420952262,1776790247140,-160.0,0.00013,10]
[420952264,1776790247149,-160.0,0.00013046,2]
[420952266,1776790247157,-176.0011173,0.00013221,2]
[420952268,1776790247166,-500.54196291,0.00013698,2]
[420952270,1776790247175,-1000.0,0.00013699,2]
[420952272,1776790247185,-1000.0,0.00013699,2]
[420952274,1776790247194,-510.71316515,0.00013702,2]
[420952428,1776790337493,500.0,0.00025318,120]
[420952585,1776790536569,500.0,0.00025318,120]
[420952586,1776790536837,500.0,0.00025318,120]
[420952587,1776790537073,500.0,0.00025318,120]
[420952588,1776790537301,500.0,0.00025318,120]
[420952589,1776790537541,500.0,0.00025318,120]
[420952590,1776790537767,345.77206609,0.00025318,120]
[420952626,1776790645704,500.0,0.00025319,120]
[420952648,1776790863168,-300.0,7.599e-05,2]
[420952649,1776790863404,-71.07700082,7.6e-05,2]
[420952652,1776790892411,-300.0,7.6e-05,2]
[420952657,1776790920155,12441.2066597,0.0002465,120]
[420952660,1776790945212,500.0,0.00025319,120]
[420952725,1776791245075,500.0,0.00025319,120]
[420952758,1776791431801,-458.20547818,7.155e-05,10]
[420952759,1776791431811,-4316.05126915,7.227e-05,10]
[420952760,1776791431854,-683.94873085,7.227e-05,10]
[420952761,1776791431863,-204.81523569,7.329e-05,2]
[420952762,1776791431873,-523.0,7.329e-05,2]
[420952763,1776791431882,-657.87928171,7.358e-05,2]
[420952764,1776791431891,-1200.0,7.457e-05,2]
[420952765,1776791431900,-1242.29190773,7.458e-05,2]
[420952766,1776791431909,-300.0,7.557e-05,2]
[420952767,1776791431918,-300.0,7.557e-05,2]
[420952768,1776791431927,-1740.56064402,7.558e-05,2]
[420952769,1776791431939,-86.14388973,7.558e-05,2]
[420952770,1776791431948,-2174.71320035,7.6e-05,2]
[420952797,1776791443166,-352.06147953,7.524e-05,10]
[420952798,1776791443178,-446.0,7.524e-05,10]
[420952812,1776791447162,-4201.93852047,7.524e-05,10]
[420952813,1776791447172,-798.06147953,7.6e-05,2]
[420952945,1776791544719,350.2,0.00025319,120]
[420952986,1776791564386,168.49077867,0.00025319,120]
[420953025,1776791804507,168.49077866,0.00025319,120]
[420953151,1776792632164,-291.85012365,6.602e-05,10]
[420953153,1776792632176,-12.84987635,6.602e-05,10]
[420953155,1776792632186,-352.38189923,6.669e-05,10]
[420953157,1776792632197,-1548.40651717,6.669e-05,10]
[420953160,1776792632207,-809.56186714,6.669e-05,10]
[420953162,1776792632218,-1071.458,6.669e-05,10]
[420953164,1776792632229,-1218.19171646,6.669e-05,10]
[420953166,1776792632239,-209.85159313,6.77e-05,2]
[420953168,1776792632248,-395.71854505,6.77e-05,2]
[420953306,1776792638980,-1498.21871523,6.702e-05,10]
[420953307,1776792638992,-3501.78128477,6.702e-05,10]
[420953308,1776792639002,-120.28145495,6.77e-05,2]
[420953309,1776792639011,-300.0,7.598e-05,2]
[420953310,1776792639020,-256.0,7.598e-05,2]
[420953311,1776792639030,-300.0,7.599e-05,2]
[420953312,1776792639038,-300.0,7.599e-05,2]
[420953313,1776792639047,-14746.80535248,7.6e-05,2]
[420953314,1776792639056,-2120.0290839,7.658e-05,2]
[420953315,1776792639066,-420.0,8.359e-05,2]
[420953316,1776792639075,-2411.11715977,8.381e-05,2]
[420953317,1776792639085,-247.62487989,8.77e-05,2]
[420953318,1776792639095,-587.0,9.195e-05,2]
[420953319,1776792639105,-57.34482947,0.0001,2]
[420953320,1776792639120,-362.57067414,0.0001,2]
[420953321,1776792639129,-2799.78275388,0.0001,2]
[420953322,1776792639138,-341.08341439,0.0001,2]
[420953323,1776792639147,-2158.15095382,0.00010072,2]
[420953324,1776792639159,-718.71323751,0.00010072,2]
[420953325,1776792639168,-328.28163706,0.00010114,2]
[420953328,1776792640582,-110.71836294,0.00010114,2]
[420953329,1776792640591,-285.39816665,0.0001077,2]
[420953330,1776792640601,-1408.0,0.00012418,2]
[420953331,1776792640611,-500.0,0.00012571,2]
[420953332,1776792640621,-500.0,0.00012571,2]
[420953333,1776792640630,-500.0,0.00012571,2]
[420953334,1776792640639,-500.0,0.00012571,2]
[420953335,1776792640649,-500.0,0.00012571,2]
[420953336,1776792640658,-500.0,0.00012571,2]
[420953337,1776792640667,-191.95192337,0.00012571,2]
[420953338,1776792640676,-638.77081229,0.00012571,2]
[420953339,1776792640685,-500.0,0.00012571,2]
[420953340,1776792640695,-216.10513454,0.00012571,2]
[420953341,1776792640704,-459.15641728,0.00012571,2]
[420953342,1776792640740,-40.84358272,0.00012571,2]
[420953343,1776792640750,-500.0,0.00012571,2]
[420953345,1776792640759,-500.0,0.00012571,2]
[420953346,1776792640767,-31.00630173,0.00012571,2]
[420953363,1776792643248,-189.35,0.00012489,2]
[420953364,1776792643258,-468.99369827,0.00012571,2]
[420953365,1776792643267,-500.0,0.00012571,2]
[420953366,1776792643276,-500.0,0.00012571,2]
[420953367,1776792643286,-500.0,0.00012571,2]
[420953368,1776792643295,-563.78226877,0.00012571,2]
[420953369,1776792643304,-2150.738,0.00012573,2]
[420953370,1776792643314,-3579.9424118,0.00012608,2]
[420953371,1776792643323,-323.17145342,0.0001277,2]
[420953372,1776792643332,-252.47,0.00012779,2]
[420953373,1776792643342,-315.59,0.00013069,2]
[420953374,1776792643351,-2230.315306,0.00013121,2]
[420953375,1776792643362,-378.71,0.0001336,2]
[420953376,1776792643371,-500.0,0.00013365,2]
[420953377,1776792643381,-500.0,0.00013365,2]
[420953378,1776792643390,-500.0,0.00013365,2]
[420953379,1776792643399,-500.0,0.00013365,2]
[420953380,1776792643408,-500.0,0.00013365,2]
[420953382,1776792643418,-500.0,0.00013365,2]
[420953384,1776792643427,-500.0,0.00013365,2]
[420953386,1776792643436,-500.0,0.00013365,2]
[420953388,1776792643445,-500.0,0.00013365,2]
[420953390,1776792643453,-500.0,0.00013365,2]
[420953391,1776792643463,-500.0,0.00013365,2]
[420953392,1776792643472,-500.0,0.00013365,2]
[420953393,1776792643481,-500.0,0.00013365,2]
[420953394,1776792643490,-500.0,0.00013365,2]
[420953395,1776792643500,-500.0,0.00013365,2]
[420953396,1776792643509,-500.0,0.00013365,2]
[420953397,1776792643519,-500.0,0.00013365,2]
[420953398,1776792643528,-500.0,0.00013365,2]
[420953399,1776792643541,-621.78829552,0.00013365,2]
[420953400,1776792643551,-607.20098085,0.00013372,2]
[420953401,1776792643560,-160.0,0.00013391,2]
[420953402,1776792643570,-441.83,0.0001365,2]
[420953403,1776792643580,-2312.83697232,0.00013669,2]
[420953404,1776792643589,-500.0,0.00013698,2]
[420953405,1776792643598,-1000.0,0.00013699,2]
[420953406,1776792643608,-768.441299,0.00013699,2]
[420953407,1776792643618,-151.0,0.00013699,2]
[420953408,1776792643627,-151.0,0.00013699,2]
[420953409,1776792643636,-151.0,0.00013699,2]
[420953410,1776792643646,-218.243112,0.00013699,2]
[420953411,1776792643655,-198.994741,0.00013699,2]
[420953412,1776792643664,-198.994741,0.00013699,2]
[420953413,1776792643673,-198.994741,0.00013699,2]
[420953414,1776792643804,-198.994741,0.00013699,2]
[420953415,1776792643856,-198.994741,0.00013699,2]
[420953416,1776792643866,-198.994741,0.00013699,2]
[420953417,1776792643876,-198.994741,0.00013699,2]
[420953418,1776792643885,-198.994741,0.00013699,2]
[420953419,1776792643895,-198.994741,0.00013699,2]
[420953420,1776792643904,-198.994741,0.00013699,2]
[420953421,1776792643913,-198.994741,0.00013699,2]
[420953422,1776792643923,-198.994741,0.00013699,2]
[420953423,1776792643932,-198.994741,0.00013699,2]
[420953424,1776792643943,-198.994741,0.00013699,2]
[420953425,1776792643952,-198.994741,0.00013699,2]
[420953426,1776792643961,-198.994741,0.00013699,2]
[420953427,1776792643970,-198.994741,0.00013699,2]
[420953428,1776792643980,-198.994741,0.00013699,2]
[420953429,1776792643989,-198.994741,0.00013699,2]
[420953430,1776792643999,-198.994732,0.00013699,2]
[420953431,1776792644008,-1000.0,0.00013699,2]
[420953432,1776792644018,-200.0,0.00013702,2]
[420953433,1776792644027,-176.16078932,0.00013899,2]
[420953434,1776792644036,-694.32,0.0001394,2]
[420953435,1776792644045,-451.69663448,0.00013999,2]
[420953436,1776792644055,-178.55353719,0.00013999,2]
[420953437,1776792644064,-500.0,0.00013999,2]
[420953438,1776792644073,-607.20098085,0.00013999,2]
[420953439,1776792644083,-607.20098085,0.00013999,2]
[420953440,1776792644092,-607.20098085,0.00013999,2]
[420953441,1776792644101,-607.20098085,0.00013999,2]
[420953442,1776792644111,-607.20098085,0.00013999,2]
[420953443,1776792644120,-607.20098085,0.00013999,2]
[420953444,1776792644129,-607.20098085,0.00013999,2]
[420953445,1776792644138,-500.0,0.00013999,2]
[420953446,1776792644147,-607.20098085,0.00013999,2]
[420953447,1776792644156,-500.0,0.00013999,2]
[420953448,1776792644166,-607.20098085,0.00013999,2]
[420953449,1776792644175,-640.70388612,0.00013999,2]
[420953450,1776792644184,-607.20098085,0.00013999,2]
[420953451,1776792644193,-607.20098085,0.00013999,2]
[420953452,1776792644202,-607.20098085,0.00013999,2]
[420953453,1776792644211,-607.20098085,0.00013999,2]
[420953454,1776792644221,-607.20098085,0.00013999,2]
[420953455,1776792644230,-541.45281204,0.00013999,2]
[420953456,1776792646348,-151.0,0.00013699,2]
[420953457,1776792646357,-153.7,0.00013999,2]
[420953464,1776792764469,163.39080564,0.00025332,120]
[420953465,1776792764528,152.71290902,0.00025332,120]
[420953466,1776792764784,163.39080564,0.00025332,120]
[420953468,1776792797733,60981.13831385,0.00025332,120]
[420953478,1776793219635,500.0,0.00025327,120]
[420953549,1776793832411,-441.70512035,0.00010362,10]
[420953551,1776793832422,-4558.29487965,0.00010362,10]
[420953553,1776793832431,-223.96082055,0.00010467,2]
[420953555,1776793832440,-567.0,0.00010467,2]
[420953557,1776793832449,-200.04091115,0.00011468,2]
[420953559,1776793832457,-545.334,0.00012222,2]
[420953560,1776793832466,-208.29,0.00012318,2]
[420953562,1776793832475,-300.0,0.0001237,2]
[420953564,1776793832485,-200.0,0.0001237,2]
[420953566,1776793832493,-447356.53312455,0.00012371,2]
[420953763,1776793838557,-5000.0,0.00010258,10]
[420953764,1776793838567,-4265.48608731,0.00012371,2]
[420953765,1776793838767,-10792.1412192,0.00012371,2]
[420953766,1776793838779,-355.20464586,0.00012371,2]
[420953780,1776793843678,-7795.987461,0.00012371,2]
[420953783,1776793846500,-28910.38343227,0.00012371,2]
[420953784,1776793846555,-306.67,0.00012371,2]
[420953787,1776793928924,5333.33,0.0002533,120]
[420953788,1776793931251,5333.33,0.0002533,120]
[420953789,1776793933584,5333.33,0.0002533,120]
[420953790,1776793937890,500.0,0.0002533,120]
[420953791,1776793941950,5333.33,0.0002533,120]
[420953792,1776793944221,5333.33,0.0002533,120]
[420953793,1776793946562,5333.35,0.0002533,120]
[420953794,1776793954759,387.703348,0.0002533,120]
[420953795,1776793994797,501.3213488,0.0002533,120]
[420953796,1776794008365,168.034239,0.0002533,120]
[420953797,1776794022984,506.80042341,0.0002533,120]
[420953798,1776794039409,505.0342208,0.0002533,120]
[420953799,1776794046718,502.30095276,0.0002533,120]
[420953800,1776794049551,508.45570347,0.0002533,120]
[420953801,1776794052740,503.59130723,0.0002533,120]
[420953802,1776794053696,263.25297356,0.0002533,120]
[420953803,1776794058846,500.0,0.0002533,120]
[420953804,1776794059071,500.0,0.0002533,120]
[420953805,1776794059297,500.0,0.0002533,120]
[420953806,1776794059532,233.35,0.0002533,120]
[420953807,1776794064017,507.03830765,0.0002533,120]
[420953808,1776794065870,502.60038208,0.0002533,120]
[420953809,1776794067771,500.99041622,0.0002533,120]
[420953810,1776794079912,508.09703889,0.0002533,120]
[420953811,1776794081012,510.39110109,0.0002533,120]
[420953812,1776794085663,506.49433003,0.0002533,120]
[420953813,1776794087497,502.18842943,0.0002533,120]
[420953814,1776794090727,249.3820935,0.0002533,120]
[420953815,1776794092411,513.84184532,0.0002533,120]
[420953816,1776794094045,500.76457878,0.0002533,120]
[420953817,1776794094420,500.0,0.0002533,120]
[420953818,1776794094648,500.0,0.0002533,120]
[420953819,1776794094864,184.84,0.0002533,120]
[420953820,1776794099707,509.74884179,0.0002533,120]
[420953821,1776794101547,511.15051951,0.0002533,120]
[420953822,1776794106675,502.06561678,0.0002533,120]
[420953823,1776794110912,362.56828957,0.0002533,120]
[420953824,1776794113326,505.17390521,0.0002533,120]
[420953825,1776794114118,500.61243799,0.0002533,120]
[420953826,1776794116400,501.4766457,0.0002533,120]
[420953827,1776794119994,501.19217238,0.0002533,120]
[420953828,1776794122279,502.5530193,0.0002533,120]
[420953829,1776794123137,500.0,0.0002533,120]
[420953830,1776794124169,503.54073922,0.0002533,120]
[420953831,1776794125946,501.00348728,0.0002533,120]
[420953832,1776794129121,502.66017498,0.0002533,120]
[420953833,1776794134942,501.38027279,0.0002533,120]
[420953834,1776794138109,210.61812318,0.0002533,120]
[420953835,1776794138222,505.22782922,0.0002533,120]
[420953836,1776794142362,504.22615157,0.0002533,120]
[420953837,1776794144117,510.05779894,0.0002533,120]
[420953838,1776794151405,503.32418443,0.0002533,120]
[420953839,1776794157844,500.31902581,0.0002533,120]
[420953841,1776794169821,500.66110561,0.00025315,120]
[420953842,1776794170189,502.19657551,0.00025315,120]
[420953843,1776794172007,501.59095575,0.00025315,120]
[420953844,1776794172106,500.97162428,0.00025315,120]
[420953845,1776794175276,500.00297637,0.00025315,120]
[420953846,1776794176781,505.94824333,0.00025315,120]
[420953847,1776794178570,500.0,0.00025315,120]
[420953848,1776794178717,501.25591518,0.00025315,120]
[420953849,1776794179134,500.0,0.00025315,120]
[420953850,1776794179377,500.0,0.00025315,120]
[420953851,1776794179633,341.38,0.00025315,120]
[420953852,1776794182770,500.0,0.00025315,120]
[420953853,1776794183001,567.23370665,0.00025315,120]
[420953854,1776794184347,501.60826956,0.00025315,120]
[420953855,1776794185034,501.8364908,0.00025315,120]
[420953856,1776794186707,500.68201107,0.00025315,120]
[420953857,1776794186956,502.44460916,0.00025315,120]
[420953858,1776794188732,506.5003732,0.00025315,120]
[420953859,1776794191236,500.0,0.00025315,120]
[420953860,1776794191469,500.0,0.00025315,120]
[420953861,1776794191708,500.0,0.00025315,120]
[420953862,1776794191853,632.71,0.00025315,120]
[420953863,1776794193696,500.88603893,0.00025315,120]
[420953864,1776794194276,500.68908016,0.00025315,120]
[420953865,1776794195316,502.82387719,0.00025315,120]
[420953866,1776794200866,548.17,0.00025315,120]
[420953867,1776794201671,500.0,0.00025315,120]
[420953868,1776794201908,500.0,0.00025315,120]
[420953869,1776794202156,619.19,0.00025315,120]
[420953870,1776794202741,500.3512927,0.00025315,120]
[420953871,1776794207993,500.0,0.00025315,120]
[420953872,1776794208262,500.0,0.00025315,120]
[420953873,1776794208507,284.3299481,0.00025315,120]
[420953874,1776794208562,500.87806067,0.00025315,120]
[420953875,1776794209844,500.0,0.00025315,120]
[420953876,1776794210076,500.0,0.00025315,120]
[420953877,1776794210308,315.19,0.00025315,120]
[420953878,1776794211617,501.34020109,0.00025315,120]
[420953879,1776794211873,503.62432336,0.00025315,120]
[420953880,1776794212224,500.95958912,0.00025315,120]
[420953881,1776794213882,500.0,0.00025315,120]
[420953882,1776794214153,351.80647914,0.00025315,120]
[420953883,1776794214427,503.77432131,0.00025315,120]
[420953884,1776794215669,500.0,0.00025315,120]
[420953885,1776794215905,500.0,0.00025315,120]
[420953886,1776794216195,194.69890299,0.00025315,120]
[420953887,1776794217737,501.2752711,0.00025315,120]
[420953888,1776794218144,500.88048637,0.00025315,120]
[420953889,1776794219061,500.38095206,0.00025315,120]